[Event "1st Semana Santa Torrevieja 2022"]
[Site "Torrevieja Alicante"]
[Date "2022.04.16"]
[Round "7.7"]
[White "Vrolijk, Liam"]
[Black "Garrido Diaz, Jose Antonio"]
[Result "1-0"]
[ECO "D31"]
[WhiteElo "2480"]
[BlackElo "2183"]
[Annotator "TA"]
[PlyCount "73"]
[EventDate "2022.04.12"]
[EventType "swiss"]
[EventCountry "ESP"]
[SourceTitle "playchess.com"]
[Source "ChessBase"]
[SourceQuality "1"]
[TimeControl "5400+30"]

{[%evp 16,73,0,0,0,0,0,0,0,0,0,0,0,0,0,0,0,0,27,18,85,89,170,147,153,170,146,171,143,147,153,150,151,143,144,0,170,158,309,-323,0,0,0,-120,836,851,844,837,836,675,12834,12833,12836,12836,29991,29992,29996,29997,29997,29998]} 1. d4 {[%emt 0:00:11]} d5 {[%emt 0:00:19]} 2. c4 {[%emt 0:00:06]} e6 {[%emt 0:00:10]} 3. Nc3 {[%emt 0:00:24]} c6 {[%emt 0:00:36]} 4. e4 {[%emt 0:00:07]} dxe4 {[%emt 0:00:44]} 5. Nxe4 {[%emt 0:00:35]} Bb4+ {[%emt 0:00:06]} 6. Bd2 {[%emt 0:00:05]} Qxd4 {[%emt 0:00:19]} 7. Bxb4 {[%emt 0:00:06]} Qxe4+ {[%emt 0:00:04]} 8. Be2 {[%emt 0:00:09]} Na6 {[%emt 0:00:53]} 9. Bd6 {[%emt 0:00:07] aiming for Nf3.} Qxg2 {[%emt 0:02:11] D31: Queen's Gambit Declined: Semi-Slav without ...Nf6 (+ Marshall Gambit and Noteboom) and Exchange Variation lines without ...Nf6.} 10. Qd2 {[%emt 0:01:48]} Nf6 {[%emt 0:05:55]} (10... Qxh1 11. O-O-O e5 12. Bxe5 $18) 11. Bf3 {[%emt 0:03:35]} Qg6 {[%emt 0:00:19] And now ...Ne4 would win. The position is equal.} 12. O-O-O $40 {[%emt 0:03:06][%mdl 128] White attacks.} e5 $1 {[%emt 0:05:24] Strongly threatening ...Ne4.} (12... Ne4 $2 13. Bxe4 Qf6 14. Nf3 $18) 13. Bxe5 {[%emt 0:02:13][%csl Gd1][%cal Rd2d8]} Be6 {[%emt 0:02:49] Hoping for ...Nd7.} 14. Ne2 {[%emt 0:01:50]} Qf5 {[%emt 0:01:30]} 15. Bf4 {[%emt 0:01:33]} Qc5 {[%emt 0:01:49]} 16. Nc3 {[%emt 0:00:25] [#]} O-O $146 {[%emt 0:15:33] Threatens to win with ...Qf5.} ({Predecessor:} 16... Qxc4 17. Be2 Qc5 18. Bd6 Qa5 19. Bxa6 Qxa6 20. Ba3 Nd7 21. Rhe1 O-O-O 22. Be7 Bg4 23. Bxd8 Rxd8 {0-1 (29) Grigoryan,A (2506)-Yudin,S (2562) Moscow 2009}) 17. Bd6 {[%emt 0:21:55]} Qxc4 {[%emt 0:03:09]} (17... Qf5 $1 $11 {remains equal.} 18. Bxf8 Rxf8) 18. Rhg1 $16 {[%emt 0:02:45][%cal Og1g7] White threatens Rxg7+! and mate.} Bf5 {[%emt 0:29:09] [#]} (18... Ne8 $16) 19. Rxg7+ $3 $18 {[%emt 0:07:38][%mdl 576] Decoy} Kxg7 {[%emt 0:00:17]} 20. Qg5+ {[%emt 0:00:25]} Bg6 {[%emt 0:00:05]} 21. Be5 $1 {[%emt 0:00:09]} Qe6 {[%emt 0:00:34]} 22. Ne4 $1 {[%emt 0:09:13][%cal Re5f6]} h6 {[%emt 0:09:45]} 23. Bxf6+ {[%emt 0:01:49]} Kh7 {[%emt 0:00:05]} 24. Qh4 {[%emt 0:00:21] &Bianco is much more active.} Qxa2 {[%emt 0:05:22][%cal Oa6c5] ...Nc5! is the strong threat.} 25. Bg5 {[%emt 0:19:54] This bishop pair is nice.} (25. Bc3 $1 $16 {Nf6+ would kill now.} Qa1+ 26. Kc2 Qa4+ 27. Kc1 Qa1+ 28. Kd2 Rfd8+ 29. Ke1 Rxd1+ 30. Bxd1) 25... Qc4+ $2 {[%emt 0:04:30]} (25... h5 $1 $11 26. Bxh5 Qc4+ 27. Kd2 Qd5+ 28. Kc1 Qc4+ 29. Kd2 Qd5+ 30. Kc1 Qc4+) 26. Kd2 $1 {[%emt 0:01:19][%mdl 1024] White has strong compensation.} Qb4+ $2 {[%emt 0:05:07]} (26... Rfd8+ $16 27. Bxd8 Rxd8+ 28. Qxd8 Bxe4 29. Bxe4+ Qxe4) 27. Ke3 $4 {[%emt 0:00:07][%mdl 8192] Chess con chili.} (27. Ke2 $1 $18 {is the narrow road to win.} Qc4+ 28. Kd2 Qb4+ 29. Ke2 Qc4+ 30. Kd2) 27... h5 {[%emt 0:00:41]} ({Better is} 27... Rfe8 $19 28. Qxh6+ Kg8) 28. Be7 $1 $11 {[%emt 0:03:19]} Qb3+ {[%emt 0:00:43]} (28... Qxb2 29. Bxh5 Qb6+ 30. Kf4 Qc7+ 31. Bd6 $18) 29. Kf4 {[%emt 0:06:44]} (29. Rd3 $1 $11 Qe6 30. Rd6) 29... Qb5 $2 {[%emt 0:01:56][%mdl 8192] [#] A mistake that costs the game.} (29... Qxb2 $2 30. Bxh5 Kg7 31. Bf6+ Qxf6+ 32. Qxf6+ Kg8 33. Qe7 $1 $18) (29... Nc7 $17 30. Nf6+ Kh8 31. Bxf8 Ne6+ 32. Kg3 Rxf8) 30. Rd5 $3 $18 {[%emt 0:04:15][%mdl 512]} cxd5 {[%emt 0:01:28] [#]} 31. Bxh5 $1 {[%emt 0:00:12]} dxe4 {[%emt 0:03:13]} 32. Be2+ {[%emt 0:00:23]} Kg8 {[%emt 0:00:15]} 33. Bxb5 {[%emt 0:00:08] Threatening mate with Bf6.} Nc7 {[%emt 0:00:15]} 34. Bc4 {[%emt 0:01:21]} ({Weaker is} 34. Bxf8 Nxb5 35. Be7 Nc7 $18) 34... Ne8 {[%emt 0:00:40]} 35. Qh6 {[%emt 0:00:35] White mates.} Ng7 {[%emt 0:00:18]} 36. Bf6 {[%emt 0:00:58][%csl Gf6][%cal Rh6g7]} Nh5+ {[%emt 0:01:13]} 37. Kg5 {[%emt 0:00:05] Weighted Error Value: White=0.27 (precise) /Black=0.72} 1-0

[Event "1st Semana Santa Torrevieja 2022"]
[Site "Torrevieja Alicante"]
[Date "2022.04.16"]
[Round "7.8"]
[White "Habans Aguerrea, Javier"]
[Black "Movsziszian, Karen"]
[Result "0-1"]
[ECO "B07"]
[WhiteElo "2340"]
[BlackElo "2441"]
[Annotator "TA"]
[PlyCount "35"]
[EventDate "2022.04.12"]
[EventType "swiss"]
[EventCountry "ESP"]
[SourceTitle "playchess.com"]
[Source "ChessBase"]
[SourceQuality "1"]
[TimeControl "5400+30"]

{[%evp 9,22,30,31,33,34,35,42,28,20,34,72,42,71,67,77]} 1. d4 {[%emt 0:00:04]} d6 {[%emt 0:00:04]} 2. e4 {[%emt 0:00:30]} Nf6 {[%emt 0:00:30]} 3. Nc3 {[%emt 0:00:30]} Nbd7 {[%emt 0:00:30]} 4. g4 {[%emt 0:00:30]} h6 {[%emt 0:00:30]} 5. h3 {[%emt 0:00:30]} e5 {[%emt 0:00:30][%cal Od6d5]} 6. Nge2 {[%emt 0:00:30] B07: Pirc Defence: Miscellaneous Systems.} c6 {[%emt 0:00:00]} 7. Bg2 {[%emt 0:02:18]} b5 $1 {[%emt 0:01:42] The main line 7...b5 scores better than 7...Be7.} 8. a3 {[%emt 0:03:41]} Be7 {[%emt 0:00:15]} 9. Be3 {[%emt 0:02:51]} Bb7 {[%emt 0:02:26]} 10. O-O {[%emt 0:00:23]} a6 {[%emt 0:01:02]} 11. Ng3 {[%emt 0:04:05]} g6 {[%emt 0:02:17][%mdl 32768] [#]  Weighted Error Value: White=0.06 (flawless) /Black=0.13 (very precise) . Loss on time!?} {Predecessor:} 12. f4 $146 Qc7 13. Qd2 Rh7 14. Qf2 O-O-O 15. a4 b4 16. Nce2 exd4 17. Nxd4 c5 18. Nde2 {1-0 (38) Saiboulatov,D (2390)-Giadrosic,D (1944) Charleroi 2004} 0-1

[Event "1st Semana Santa Torrevieja 2022"]
[Site "Torrevieja Alicante"]
[Date "2022.04.16"]
[Round "7.9"]
[White "Del Rio De Angelis, Salvador G."]
[Black "Moral Garcia, Serafin"]
[Result "0-1"]
[ECO "B50"]
[WhiteElo "2452"]
[BlackElo "2214"]
[Annotator "TA"]
[PlyCount "64"]
[EventDate "2022.04.12"]
[EventType "swiss"]
[EventCountry "ESP"]
[SourceTitle "playchess.com"]
[Source "ChessBase"]
[SourceQuality "1"]
[TimeControl "5400+30"]

{[%evp 13,64,-10,-7,0,14,-16,-12,-18,4,-11,-11,-14,-14,-25,-25,-45,-27,-37,-18,-30,0,0,0,0,0,-20,-23,-24,-3,-23,0,-45,0,-203,-52,-57,-57,-60,-55,-107,-102,-277,-187,-249,-224,-797,-792,-758,-774,-794,-790,-706,-717]} 1. Nf3 {[%emt 0:00:08]} Nf6 {[%emt 0:02:39]} 2. d3 {[%emt 0:00:55]} g6 {[%emt 0:00:41]} 3. e4 {[%emt 0:00:11]} d6 {[%emt 0:00:41]} 4. Be2 {[%emt 0:00:40]} Bg7 {[%emt 0:00:20]} 5. O-O {[%emt 0:00:31]} O-O {[%emt 0:00:45]} 6. c3 {[%emt 0:00:23]} c5 {[%emt 0:01:20]} 7. h3 {[%emt 0:00:55] 7.Be3 is the modern continuation.} Nc6 {[%emt 0:01:32]} 8. Re1 {[%emt 0:01:02] B50: Sicilian: 2...d6, Miscellaneous.} Rb8 {[%emt 0:02:24]} 9. Bf1 {[%emt 0:00:31]} e5 $1 {[%emt 0:05:53]} 10. a3 {[%emt 0:12:34] The position is equal.} a5 {[%emt 0:03:51]} 11. a4 {[%emt 0:04:22] [#]} h6 $146 {[%emt 0:03:11]} ({Predecessor:} 11... Ne8 12. Na3 h6 13. d4 cxd4 14. cxd4 exd4 15. Bf4 g5 16. Bh2 Be5 17. Rc1 Qf6 {0-1 (40) Almirall Exposito,P (2186)-Muguercia Donner,R (2168) Matanzas 2018}) 12. Na3 {[%emt 0:00:49]} d5 {[%emt 0:02:23]} 13. exd5 {[%emt 0:03:27]} Nxd5 {[%emt 0:04:44]} 14. Qb3 {[%emt 0:00:32]} b6 {[%emt 0:06:01]} (14... Be6 $5 {[%cal Rd5c3]}) 15. Nd2 {[%emt 0:02:14]} Nf4 {[%emt 0:04:18]} 16. Qc2 {[%emt 0:00:48]} f5 {[%emt 0:04:11]} (16... Qd5 {looks sharper.} 17. Ndc4 Rd8 18. Ne3 Qe6) 17. Ndc4 {[%emt 0:02:55]} Nd5 {[%emt 0:02:24]} 18. Nb5 {[%emt 0:02:03]} Qf6 {[%emt 0:05:57]} 19. Be2 {[%emt 0:13:54]} Be6 {[%emt 0:04:06]} 20. Bf3 {[%emt 0:00:48]} Kh8 {[%emt 0:06:56]} 21. Bd2 {[%emt 0:05:33]} Bg8 {[%emt 0:03:41]} 22. Re2 {[%emt 0:02:05]} Qh4 {[%emt 0:09:00]} (22... Nde7 $5 {[%cal Re5e4]} 23. Nba3 Qh4 $11) 23. Kh2 $2 {[%emt 0:03:52] [#]} (23. Rae1 $11 {and White has nothing to worry.}) 23... e4 $2 {[%emt 0:02:52]} (23... Nf4 $1 $19 {Strongly threatening ...e4.} 24. Kg1 (24. Bxf4 $2 Qxf4+ 25. Kg1 e4 $19) 24... e4 25. Bxf4 Qxf4 26. Bxe4 fxe4 27. Rxe4 Qf5) 24. g3 $15 {[%emt 0:01:23] [#]} exd3 $1 {[%emt 0:02:39]} 25. Qxd3 {[%emt 0:00:44]} Ndb4 $1 {[%emt 0:00:37][%cal Og8c4]} 26. cxb4 {[%emt 0:04:44]} (26. gxh4 $15 Nxd3 27. Bxc6 Bxc4 28. Nd6) 26... Qxc4 $17 {[%emt 0:00:19]} 27. Qd6 {[%emt 0:00:20] [#] This move loses the game for White.} (27. Qxc4 $17 Bxc4 28. bxc5) 27... Ne5 $1 $36 {[%emt 0:05:47][%mdl 2560] White is under strong pressure.} 28. Rxe5 {[%emt 0:21:40]} Rbd8 {[%emt 0:00:29]} 29. Bf4 $2 {[%emt 0:00:36]} (29. Qxg6 Rf6 30. Qe8 Rxe8 31. Rxe8) 29... Rxd6 {[%emt 0:00:56] Black is clearly winning.} 30. Nxd6 {[%emt 0:14:51]} Qb3 {[%emt 0:02:37]} 31. Re3 {[%emt 0:00:00]} Qxb2 {[%emt 0:00:37]} 32. Rae1 {[%emt 0:00:00]} g5 {[%emt 0:02:55] Weighted Error Value: White=0.54/Black=0.17 (very precise)} 0-1

[Event "1st Semana Santa Torrevieja 2022"]
[Site "Torrevieja Alicante"]
[Date "2022.04.16"]
[Round "7.10"]
[White "Ulasevich, Sergei"]
[Black "Larino Nieto, David"]
[Result "0-1"]
[ECO "B01"]
[WhiteElo "2199"]
[BlackElo "2440"]
[Annotator "TA"]
[PlyCount "122"]
[EventDate "2022.04.12"]
[EventType "swiss"]
[EventCountry "ESP"]
[SourceTitle "playchess.com"]
[Source "ChessBase"]
[SourceQuality "1"]
[TimeControl "5400+30"]

{[%evp 9,122,71,101,69,81,96,124,20,5,12,10,-23,-14,-122,-126,-130,-135,-121,-132,-406,-397,-363,-172,-167,-162,-164,-158,-162,-164,-176,-173,-167,-160,-167,-164,-160,-167,-167,-164,-163,-159,-160,-124,-126,-121,-180,-187,-369,-307,-468,-462,-692,-691,-622,-841,-761,-520,-604,-190,-184,-181,-194,-194,-192,-185,-179,-168,-165,-185,-166,-178,-167,-156,-382,-158,-220,-204,-220,-219,-219,-219,-219,-19,-48,0,-219,-129,-219,-219,-219,-219,-584,-584,-584,-581,-471,-332,-332,-332,-332,-60,-56,-121,-608,-242,-1685,-1572,-29980,-29981,-29981,-29982,-29979,-29980,-29978,-29976]} 1. e4 {[%emt 0:00:04]} d5 {[%emt 0:01:34]} 2. exd5 {[%emt 0:00:25]} Qxd5 {[%emt 0:00:01]} 3. Nf3 {[%emt 0:03:41]} Nf6 {[%emt 0:00:22]} 4. d4 {[%emt 0:00:21]} Nc6 {[%emt 0:01:42]} 5. c4 {[%emt 0:02:04]} Qa5+ {[%emt 0:03:45]} 6. Bd2 {[%emt 0:05:21] B01: Scandinavian Defence.} Qh5 {[%emt 0:05:54]} 7. Be2 {[%emt 0:00:30]} Bg4 {[%emt 0:04:28]} 8. Nc3 {[%emt 0:07:15]} (8. O-O $16) 8... O-O-O $11 {[%emt 0:02:37]} 9. d5 {[%emt 0:04:36]} Ne5 {[%emt 0:06:48][%cal Bc6e5,Be5f3,Bf3d2][%mdl 32]} 10. Be3 {[%emt 0:00:25]} e6 {[%emt 0:01:19] [#]} 11. Nb5 $146 {[%emt 0:19:12]} (11. Nxe5 $11 Bxe2 12. Qxe2 Qxe5 13. dxe6 (13. Bxa7 Qxe2+ 14. Kxe2 b6 $17)) ({Predecessor:} 11. Qa4 a6 12. Nxe5 Qxe5 13. O-O-O Bxe2 14. Nxe2 exd5 15. c5 Bxc5 16. Bxc5 Qxe2 17. Qa3 {½-½ (33) Besenyi,T (1937)-Volgyi,R (1755) Hungary 2015}) 11... Bb4+ {[%emt 0:12:17]} (11... exd5 $6 12. Nxe5 Bb4+ 13. Kf1 Bxe2+ 14. Qxe2 $11) 12. Kf1 {[%emt 0:02:23]} Nxf3 {[%emt 0:09:06]} (12... exd5 $6 13. Nxe5 Bxe2+ 14. Qxe2 $11) 13. Nxa7+ {[%emt 0:00:31]} Kb8 {[%emt 0:00:01]} 14. Qa4 $2 {[%emt 0:16:34][%mdl 8192]} (14. Bxf3 $17 {is the only way for White.} Bxf3 15. Qxf3) 14... Nd2+ $19 {[%emt 0:03:10]} 15. Ke1 {[%emt 0:00:06]} Bxe2 {[%emt 0:10:39]} (15... Nxc4+ $142 16. Qxb4 Bxe2 17. Nc6+ Kc8 18. Na7+ Kb8 19. Nc6+ Kc8 20. Na7+ Kd7 21. Qb5+ Ke7 22. Bc5+ Rd6 $1 {[%mdl 512]} 23. Bxd6+ Nxd6 24. Qxe2 Qxd5) 16. Nc6+ {[%emt 0:05:14]} bxc6 {[%emt 0:07:28]} 17. Qxb4+ {[%emt 0:00:08]} Kc8 {[%emt 0:00:04][%cal Bb8c8,Bc8d8,Bd8e7][%mdl 32]} 18. dxc6 {[%emt 0:00:07][%csl Gc6][%cal Rb4b7] [#]} Rd6 $1 {[%emt 0:00:16]} 19. Qb7+ {[%emt 0:02:27]} Kd8 {[%emt 0:00:01][%cal Oe2c4]} 20. Qb8+ {[%emt 0:00:16]} Ke7 {[%emt 0:00:02]} 21. Qxc7+ {[%emt 0:00:08] [#]} Nd7 $1 {[%emt 0:00:01]} 22. cxd7 {[%emt 0:00:28][%csl Gc7][%cal Rd7d8] [#]} Rd8 $1 $40 {[%emt 0:00:04][%mdl 128] Black has strong attack. &Nero is more active.} 23. Qc5 {[%emt 0:09:27]} (23. Bc5 $2 Ne4 24. Bxd6+ Nxd6 $19) 23... Nxc4 {[%emt 0:06:48] Dancing on a razor blade.} (23... R8xd7 24. Qxh5 Bxh5 25. Bc5) 24. Qxh5 {[%emt 0:00:02]} Bxh5 {[%emt 0:00:05]} 25. Bc5 {[%emt 0:00:03]} Nxb2 {[%emt 0:00:16] White must now prevent ...Nd3+.} (25... Kxd7 26. Bxd6 Kxd6 27. b3 $17) 26. Bxd6+ {[%emt 0:00:15]} Kxd6 {[%emt 0:00:03]} 27. Kd2 {[%emt 0:01:03] Against Nd3} (27. f3 $17 {is a better defense.}) 27... Rxd7 {[%emt 0:00:56]} 28. Rab1 $2 {[%emt 0:03:14]} (28. f3 {might work better.}) 28... Kc5+ {[%emt 0:03:15]} 29. Ke3 {[%emt 0:01:02]} (29. Ke1 $142) 29... Nd1+ {[%emt 0:02:29]} 30. Kf4 {[%emt 0:00:14]} (30. Rhxd1 $142 Rxd1 31. Rxd1 Bxd1 32. Kd2) 30... Rd4+ {[%emt 0:00:29]} 31. Kg5 {[%emt 0:00:12]} Be2 {[%emt 0:01:23][%csl Gg7][%cal Rf7f6]} 32. f3 {[%emt 0:00:49]} h6+ {[%emt 0:03:01]} 33. Kh5 {[%emt 0:00:06]} Kd5 $2 {[%emt 0:02:54]} (33... Ne3 34. Rb7 Rf4 35. Rc1+ Kd6) 34. Rb7 {[%emt 0:00:56]} Rf4 {[%emt 0:02:52]} 35. Rxd1+ {[%emt 0:04:24]} Bxd1 {[%emt 0:00:07][%mdl 4096] Endgame KRB-KR} 36. Rd7+ {[%emt 0:00:04]} Ke5 {[%emt 0:00:07][%cal Od1f3]} 37. Rxd1 {[%emt 0:00:02] KR-KR} Kf6 $1 {[%emt 0:00:11]} 38. g3 {[%emt 0:02:11]} Rxf3 {[%emt 0:00:02]} 39. a4 {[%emt 0:01:31]} Ra3 {[%emt 0:01:09] Against Ra1} 40. Rd4 {[%emt 0:00:14]} e5 {[%emt 0:00:22]} 41. Rg4 {[%emt 0:01:54]} (41. Rb4 $17 {was necessary.}) 41... Rd3 {[%emt 0:02:24]} (41... Ra2 $19 {( -> ...g6+)} 42. h4 Ra3) 42. Rb4 {[%emt 0:00:29]} (42. Rc4 $17 {was worth a try.}) 42... Kf5 {[%emt 0:01:11] ...e4 is the strong threat.} 43. Rb7 {[%emt 0:00:59]} Ke6 {[%emt 0:00:37]} 44. a5 {[%emt 0:00:29]} Ra3 {[%emt 0:00:35]} 45. Rb6+ {[%emt 0:00:20]} Kd5 $2 {[%emt 0:02:01]} (45... Kf5 $1 $19 46. Rb7 f6 47. Rxg7 Rxa5) 46. Rb7 $11 {[%emt 0:01:31]} Ke6 $2 {[%emt 0:00:45]} (46... Rxa5 47. Rxf7 Kd4 48. Rxg7 $17) (46... e4 $15 47. Rxf7 Ke6) 47. Rb6+ $19 {[%emt 0:00:04]} Kf5 $1 {[%emt 0:00:23]} 48. Rb7 {[%emt 0:04:12] [#]} (48. a6 $17) 48... f6 $1 {[%emt 0:00:53]} ({And not} 48... Rxa5 49. Rxf7+ Ke4 50. Rxg7 $11) 49. Rxg7 {[%emt 0:00:02]} Rxa5 {[%emt 0:00:12] And now ...e4 would win.} 50. Rg4 {[%emt 0:03:02]} (50. Rb7 {nothing else works.}) 50... e4 {[%emt 0:00:58]} 51. Rf4+ {[%emt 0:00:01]} Ke6+ {[%emt 0:00:06]} 52. Kg6 {[%emt 0:00:59]} Rg5+ {[%emt 0:00:25]} 53. Kxh6 {[%emt 0:00:05]} e3 {[%emt 0:00:12]} 54. Rf1 {[%emt 0:00:33]} (54. Re4+ Re5 55. Ra4 e2 56. Ra6+ Kf5 57. g4+ Kxg4 58. Ra1 e1=Q 59. Rxe1 Rxe1 60. Kg6 f5 61. h3+ Kf4 62. h4 Ke5 63. h5 f4 64. h6 f3 65. h7 Rh1 66. h8=R Rxh8 67. Kf7 f2 68. Kg7 {[#]} f1=Q $1 {[%mdl 512]} 69. Kxh8 Qg1 70. Kh7 Kf6 71. Kh8 Qg7#) 54... Rf5 $2 {[%emt 0:01:12]} (54... e2 55. Re1 Re5 56. Kg7 $17) ({Better is} 54... Kd5 $19 {Hoping for ...Rg8.} 55. Ra1 Rg8) 55. Re1 $15 {[%emt 0:01:02]} Rf3 {[%emt 0:00:06] aiming for ...Kf5.} 56. Kh5 $2 {[%emt 0:01:01][%mdl 8192]} (56. Kg6 $17) 56... Ke5 $2 {[%emt 0:00:49]} (56... Kf5 {Threatens to win with ...Ke4.} 57. Kh6 Ke4) 57. Kg4 $2 {[%emt 0:01:09]} (57. Kg6) 57... Ke4 $19 {[%emt 0:00:02]} 58. h4 {[%emt 0:00:07]} f5+ {[%emt 0:00:11][%cal Bf6f5,Bf5f4][%mdl 32] Black mates.} 59. Kh3 {[%emt 0:00:04]} f4 {[%emt 0:00:10]} 60. h5 {[%emt 0:00:15]} Rxg3+ {[%emt 0:00:12]} 61. Kh4 {[%emt 0:00:03]} Rg2 {[%emt 0:00:13] Weighted Error Value: White=0.66/Black=0.44} 0-1

[Event "1st Semana Santa Torrevieja 2022"]
[Site "Torrevieja Alicante"]
[Date "2022.04.16"]
[Round "7.11"]
[White "Garcia Gimenez, Santiago"]
[Black "Rakotomaharo, Fy Antenaina"]
[Result "0-1"]
[ECO "C54"]
[WhiteElo "2171"]
[BlackElo "2474"]
[Annotator "TA"]
[PlyCount "64"]
[EventDate "2022.04.12"]
[EventType "swiss"]
[EventCountry "ESP"]
[SourceTitle "playchess.com"]
[Source "ChessBase"]
[SourceQuality "1"]
[TimeControl "5400+30"]

{[%evp 13,64,10,17,7,20,18,30,17,27,21,53,45,50,9,37,22,51,-8,0,0,0,-162,-180,-168,-159,-161,-138,-135,-79,-202,-216,-423,-435,-404,-424,-379,-373,-598,-586,-777,-806,-29982,-955,-1001,-968,-824,-787,-5761,-5060,-29990,-29991,-29991,-29992]} 1. e4 {[%emt 0:09:30]} e5 {[%emt 0:00:20]} 2. Nf3 {[%emt 0:00:15]} Nc6 {[%emt 0:00:05]} 3. Bc4 {[%emt 0:00:19]} Bc5 {[%emt 0:00:08]} 4. c3 {[%emt 0:00:12]} Nf6 {[%emt 0:00:06]} 5. d3 {[%emt 0:00:07]} a5 {[%emt 0:00:24]} 6. O-O {[%emt 0:00:15]} d6 {[%emt 0:00:10]} 7. a4 {[%emt 0:00:44]} O-O {[%emt 0:03:36]} 8. Bg5 {[%emt 0:01:37] C54: Giuoco Piano: 4 c3 Nf6, main lines with 5 d4 and 5 d3.} h6 {[%emt 0:00:43]} 9. Bh4 {[%emt 0:00:12]} Be6 {[%emt 0:03:42]} 10. Nbd2 {[%emt 0:03:05] White has an edge.} g5 {[%emt 0:04:02]} 11. Bg3 {[%emt 0:00:25] [#]} Nh7 $146 {[%emt 0:01:25]} ({Predecessor:} 11... Ba7 12. Re1 Qe7 13. Bb5 Nh7 14. d4 exd4 15. Bxc6 bxc6 16. Nxd4 Bd7 17. Nc4 Bxd4 18. Qxd4 {1-0 (42) Petrov,N (2585)-Fus,J (2326) Lisbon 2019}) 12. Re1 {[%emt 0:09:43]} Ba7 {[%emt 0:11:58]} 13. Qc2 {[%emt 0:05:01][%cal Od3d4]} h5 {[%emt 0:05:43] aiming for ...h4.} 14. h3 {[%emt 0:00:46][%cal Od3d4]} Qf6 {[%emt 0:02:24]} 15. Bxe6 {[%emt 0:05:10]} (15. d4 $1 $14) 15... fxe6 $11 {[%emt 0:02:21]} 16. Re2 {[%emt 0:00:10]} Rf7 {[%emt 0:05:26]} 17. Nc4 $2 {[%emt 0:00:23]} (17. Qb3 $11 Rb8 18. d4) 17... h4 $19 {[%emt 0:02:21]} 18. Bh2 {[%emt 0:00:11]} g4 $1 {[%emt 0:00:03]} 19. hxg4 {[%emt 0:00:29][%cal Od3d4]} Rg7 {[%emt 0:05:43]} 20. Ne3 {[%emt 0:01:19]} h3 {[%emt 0:00:09]} (20... Rf8 $142 {[%cal Oh4h3]} 21. Rf1 h3) 21. Nd2 {[%emt 0:07:22] Now White is beyond hope.} (21. Bg3 $17 {was called for.}) 21... Ng5 {[%emt 0:00:25] Hoping for ...hxg2.} 22. Qd1 $2 {[%emt 0:12:45]} (22. g3 {was forced.} Nf3+ 23. Nxf3 Qxf3 24. Qd1) 22... hxg2 {[%emt 0:11:37]} 23. Kxg2 {[%emt 0:00:39]} Rf8 {[%emt 0:00:07] Threatens to win with ...Rh7. The board is on fire.} 24. Bg3 {[%emt 0:08:28]} Nf3 {[%emt 0:01:48]} ({Not} 24... Rh7 $2 25. Re1 $19) 25. b3 $2 {[%emt 0:07:14]} (25. Nf5 Nxd2 26. Rxd2 exf5 27. gxf5) 25... Ne7 {[%emt 0:02:21]} 26. Ndc4 {[%emt 0:05:17]} Rh7 {[%emt 0:05:19] ...Ng6 is the strong threat.} ({But not} 26... Ng5 $2 27. Re1 $19) 27. Rb2 {[%emt 0:01:43] [#]} Ng6 {[%emt 0:01:15]} (27... Ne1+ $142 $1 {[%mdl 512]} 28. Kg1 (28. Kf1 Rh1+) 28... Bxe3 29. Nxe3 {[#]} Qh6 $1 30. Bh4 Qxh4 31. Kf1 Qh1+ 32. Ke2 Rxf2+ $3 {[%mdl 512]} 33. Kxf2 Rh2+ 34. Kg3 Rxb2 35. Nc2 Qg2+ 36. Kh4 Qh2+ 37. Kg5 Kg7 $1 38. Nxe1 Qh6#) 28. Nf5 {[%emt 0:08:30]} exf5 {[%emt 0:02:12]} 29. Qxf3 {[%emt 0:00:09]} f4 {[%emt 0:00:22]} 30. Nxa5 {[%emt 0:00:05]} Qg5 {[%emt 0:00:53]} 31. Rg1 {[%emt 0:04:52]} fxg3 {[%emt 0:00:26]} 32. Qxg3 {[%emt 0:00:07]} Nh4+ {[%emt 0:00:33] Weighted Error Value: White=1.27/Black=0.20 (precise)} 0-1